Cogmind - Beta 10.2 @@@ ROGUE MODE // 2020.12.26 @ 00:12:35 Player: SureStep Result: Destroyed by Y-45 Defender with Heavy Assault Rifle Performance ------------- Evolutions (1) 500 Regions Visited (2) 400 Robots Destroyed (49) 245 Value Destroyed (1147) 1147 Prototype IDs (7) 140 Alien Tech Used (0) 0 Bonus (41) 41 TOTAL SCORE: 2473 Bonus ------- High Alert Combat Kills 41 Cogmind --------- Core Integrity 0/400 Matter 91/300 Energy 265/265 System Corruption 1% Temperature Cool (15) Movement Flying (175) Ox2 Location -9/Materials Parts ------- > --- POWER (1) -------- Improved Ion Engine > --- PROPULSION (3) --- Improved Flight Unit > --- UTILITY (3) ------ Small Storage Unit Improved Signal Interpreter > --- WEAPON (2) ------- Improved Light Cannon > --- INVENTORY (6) ---- (None) Peak State ------------ > --- POWER ------------ Light Ion Engine > --- PROPULSION ------- Improved Hover Unit Improved Hover Unit Improved Hover Unit > --- UTILITY ---------- Small Storage Unit Sensor Array Targeting Computer > --- WEAPON ----------- Improved Light Cannon Improved Light Cannon > --- INVENTORY -------- Light Ion Engine Hover Unit Improved Hover Unit Improved Light Cannon Improved Light Cannon Mini Grenade Launcher [Rating: 15] Favorites ----------- Power Light Ion Engine Engine Light Ion Engine Propulsion Hover Unit Leg Aluminum Leg Wheel Wheel Hover Unit Hover Unit Flight Unit Improved Flight Unit Utility Small Storage Unit Device Sensor Array Storage Small Storage Unit Processor Improved Signal Interpreter Weapon Improved Light Cannon Energy Gun Medium Laser Energy Cannon Beam Cannon Ballistic Gun Light Assault Rifle Ballistic Cannon Improved Light Cannon Launcher Mini Grenade Launcher Special Weapon Plasma Cutter Build | -11 -10 -9 ------- Run | Scr Mat Mat Slots Evolved 2 | . . 2 Power . | . . . Propulsion 1 | . . 1 Utility 1 | . . 1 Weapon . | . . . Parts Attached 44 | 8 17 19 Power 5 | 1 . 4 Engine 5 | 1 . 4 Core . | . . . Reactor . | . . . Propulsion 16 | 2 6 8 Treads . | . . . Leg 2 | 2 . . Wheel 1 | . . 1 Hover 12 | . 6 6 Flight 1 | . . 1 Utility 8 | 1 4 3 Device 4 | . 2 2 Storage 2 | 1 1 . Processor 2 | . 1 1 Hackware . | . . . Protection . | . . . Artifact . | . . . Weapon 15 | 4 7 4 Energy Gun 3 | 3 . . Energy Cannon 2 | . 2 . Ballistic Gun 2 | 1 1 . Ballistic Cannon 6 | . 3 3 Launcher 1 | . . 1 Special Weapon 1 | . 1 . Impact Weapon . | . . . Slashing Weapon . | . . . Piercing Weapon . | . . . Special Melee Weapon . | . . . Unidentified Prototypes 1 | . . 1 Parts Lost 13 | . . 13 Power 2 | . . 2 Propulsion 6 | . . 6 Utility 1 | . . 1 Weapon 4 | . . 4 Highest Loss Streak 6 | . . 6 Average Slot Usage (%) 89 | . 97 84 Engine 10 | . 14 8 Leg 1 | . 4 . Hover 20 | . 22 20 Device 7 | . 2 10 Storage 15 | . 22 11 Processor 7 | . 2 11 Energy Cannon 3 | . 8 . Ballistic Gun 3 | . 10 . Ballistic Cannon 11 | . 5 15 Launcher 3 | . . 5 Naked Turns . | . . . Heaviest Build 16 | 10 15 16 Greatest Support 24 | 20 20 24 Greatest Overweight (x) 5 | . 3 5 Average Overweight (x) . | . . . Largest Inventory Capacity 6 | 6 6 6 Average Capacity 5 | 5 6 6 Most Carried 6 | 3 6 6 Average Carried 3 | . 4 3 Final Capacity 6 | 6 6 6 Final Carried 6 | 1 6 . Class Distribution -------------------- 74% | Mutant 25% | Scavenger-Mutant Dominant Class ---------------- Mutant | -10/Materials Mutant | -9/Materials Resources | -11 -10 -9 ----------- Run | Scr Mat Mat Matter Collected 1026 | 170 314 542 Remotely . | . . . Salvage Created 1043 | . 285 758 Parts 103 | . 33 70 Haulers Intercepted 2 | . 1 1 Recyclers Shooed . | . . . Parts Field Recycled . | . . . Retrieved Matter . | . . . Parts Self-Destructed . | . . . Prevented . | . . . Kills | -11 -10 -9 ------- Run | Scr Mat Mat Combat Hostiles Destroyed 35 | . 9 26 Guns 1 | . 1 . Cannons 26 | . 8 18 AOE 8 | . . 8 Classes Destroyed 8 | . 4 4 Worker 3 | . . 3 Builder 2 | . . 2 Hauler 2 | . 1 1 Operator 1 | . . 1 Watcher 6 | . 3 3 Swarmer 14 | . 8 6 Grunt 16 | . 1 15 Sentry 5 | . . 5 Best Kill Streak 7 | . 5 7 Combat Bots Only 7 | . 2 7 Max Kills in Single Turn 4 | . 1 4 Gunslinging . | . . . Exploded 4 | . . 4 Melee . | . . . Uniques/NPCs Destroyed . | . . . Combat | -11 -10 -9 -------- Run | Scr Mat Mat Damage Taken 1681 | . 159 1522 Core 442 | . 32 410 Absorbed by Shields . | . . . Core Remaining (%) 93 | 100 87 . Volleys Fired 120 | . 34 86 Largest 2 | . 2 2 Hottest 80 | . 80 78 Shots Fired 199 | . 68 131 Gun 34 | . 34 . Cannon 148 | . 34 114 Launcher 17 | . . 17 Special . | . . . Kinetic 148 | . 34 114 Thermal 34 | . 34 . Explosive 17 | . . 17 Electromagnetic . | . . . Robot Hit Streak 9 | . 9 8 Robot Miss Streak 10 | . 10 4 Penetration Max . | . . . Secondary Targets . | . . . Shots Hit Robots 98 | . 27 71 Core Hits 61 | . 18 43 Critical Hits 1 | . . 1 Critical Kills 1 | . . 1 Critical Parts Destroyed . | . . . Melee Attacks . | . . . Impact . | . . . Slashing . | . . . Piercing . | . . . Sneak Attacks . | . . . Combat Hostiles . | . . . Follow-up Attacks . | . . . Damage Inflicted 2804 | . 449 2355 Guns 100 | . 100 . Cannons 1887 | . 349 1538 Explosions 817 | . . 817 Melee . | . . . Ramming . | . . . Kinetic 1638 | . 100 1538 Thermal 349 | . 349 . Explosive 817 | . . 817 Electromagnetic . | . . . Impact . | . . . Slashing . | . . . Piercing . | . . . Highest Corruption 1 | . . 1 Average Corruption 1 | . . 1 Corruption Purged . | . . . Overload Shots . | . . . Overflow Damage 140 | . . 140 Projectiles 25 | . . 25 Explosions 115 | . . 115 Melee . | . . . Knockbacks 8 | . . 8 Impact . | . . . Kinetic 8 | . . 8 Secondary . | . . . Self-Inflicted Damage 230 | . . 230 Shots 8 | . . 8 Rammed . | . . . Targets Rammed . | . . . Kicked . | . . . Crushed . | . . . Highest Temperature 166 | . 166 107 Average Temperature 39 | . 56 24 Received Heat Transfer 519 | . . 519 Siege Activations . | . . . Robots Corrupted . | . . . Combat Hostiles . | . . . Parts Fried . | . . . Impact Corruptions . | . . . Robots Melted . | . . . Combat Hostiles . | . . . Parts Melted . | . . . Heat Transferred 740 | . 740 . Parts Sabotaged . | . . . Parts Stolen . | . . . Parts Stripped . | . . . Power Chain Reactions . | . . . Missiles Intercepted . | . . . Alert | -11 -10 -9 ------- Run | Scr Mat Mat Peak Influence 590 | . 286 590 Initial 107 | . . 107 Average 259 | . 160 327 Maximum Alert Level 2 | . 1 2 Low Security (%) 27 | 100 49 11 Level 1 60 | . 50 67 Level 2 12 | . . 20 Level 3 . | . . . Level 4 . | . . . Level 5 . | . . . High Security . | . . . Max Security . | . . . Squads Dispatched 8 | . 2 6 Investigation 6 | . 2 4 Extermination . | . . . Reinforcement 2 | . . 2 Assault . | . . . Garrison . | . . . Intercept . | . . . Construction Impeded . | . . . Haulers Reinforced . | . . . Stealth | -11 -10 -9 --------- Run | Scr Mat Mat Distress Signals 2 | . 2 . Communications Jammed . | . . . Distress Signals . | . . . Times Spotted 63 | . 19 44 Peak Tracking Total 11 | . 4 11 Tactical Retreats 11 | . 4 7 Traps | -11 -10 -9 ------- Run | Scr Mat Mat Traps Triggered 7 | . 2 5 Indirectly . | . . . Trap Hack Attempts . | . . . Triggered . | . . . Disarmed . | . . . Reprogrammed . | . . . Reused . | . . . Traps Extracted . | . . . Installed . | . . . Triggered . | . . . Machines | -11 -10 -9 ---------- Run | Scr Mat Mat Machines Disabled 7 | . 1 6 Max in Single Turn 1 | . 1 1 Machines Sabotaged . | . . . Garrisons Compromised . | . . . Overloaded Fab Kills . | . . . Fab Network Shutdowns . | . . . Hacking | -11 -10 -9 --------- Run | Scr Mat Mat Machines Accessed 16 | . 9 7 Terminals 13 | . 8 5 Fabricators . | . . . Repair Stations 2 | . 1 1 Recycling Units . | . . . Scanalyzers 1 | . . 1 Garrison Access . | . . . Total Hacks 41 | . 24 17 Successful 29 | . 17 12 Failed 12 | . 7 5 Catastrophic . | . . . Database Lockouts . | . . . Manual . | . . . Terminals 29 | . 18 11 Fabricators . | . . . Repair Stations 9 | . 6 3 Recycling Units . | . . . Scanalyzers 3 | . . 3 Garrison Access . | . . . Terminal Hacks 18 | . 11 7 Prototype ID Bank 5 | . 3 2 Emergency Access Points 1 | . 1 . Terminal Index 1 | . 1 . Alert Level 2 | . 1 1 Unreport Threat 1 | . . 1 Locate Traps 5 | . 4 1 Maintenance Status 1 | . 1 . Investigation Status 1 | . . 1 Zone Layout 1 | . . 1 Fabricator Hacks . | . . . Repair Station Hacks 8 | . 6 2 Scan Component 4 | . 3 1 Repair 4 | . 3 1 Recycling Unit Hacks . | . . . Scanalyzer 3 | . . 3 Insert Component 2 | . . 2 Analyze 1 | . . 1 Garrison Access Hacks . | . . . Unauthorized Hacks . | . . . Terminals . | . . . Fabricators . | . . . Repair Stations . | . . . Recycling Units . | . . . Scanalyzers . | . . . Garrison Access . | . . . Data Cores Recovered 1 | . . 1 Used 1 | . . 1 Hacking Detections 9 | . 6 3 Full Trace Events 4 | . 1 3 Feedback Events . | . . . Feedback Blocked . | . . . Robot Schematics Acquired . | . . . Robots Built . | . . . Matter . | . . . Time . | . . . Total Robot Build Rating . | . . . Part Schematics Acquired 1 | . . 1 Parts Built . | . . . Matter . | . . . Time . | . . . Total Part Build Rating . | . . . Parts Repaired 4 | . 3 1 Time 94 | . 78 16 Parts Recycled . | . . . Recycled Matter . | . . . Retrieved Matter . | . . . Retrieved Components . | . . . Parts Scanalyzed 1 | . . 1 Part Schematics Acquired 1 | . . 1 Parts Damaged . | . . . Bothacking | -11 -10 -9 ------------ Run | Scr Mat Mat Used RIF Installer . | . . . Robots Hacked . | . . . Non-combat . | . . . Combat . | . . . Robot Hacks Applied . | . . . Relay Couplers Released . | . . . Robots Rewired . | . . . Allies Hacked . | . . . Hacks Repelled . | . . . Allies | -11 -10 -9 -------- Run | Scr Mat Mat Total Allies . | . . . Largest Group . | . . . Highest-Rated Group . | . . . Highest-Rated Ally . | . . . Total Orders . | . . . Ally Attacks . | . . . Total Damage . | . . . Kills . | . . . Allies Corrupted . | . . . Allies Melted . | . . . Intel | -11 -10 -9 ------- Run | Scr Mat Mat Robot Analysis Total . | . . . Derelict Logs Recovered . | . . . Drone Launches . | . . . Drone Recoveries . | . . . Exploration | -11 -10 -9 ------------- Run | Scr Mat Mat Turns Passed 2232 | 57 792 1383 Spaces Moved 2071 | 40 795 1236 Core 54 | 9 4 41 Treads . | . . . Legs 108 | 31 77 . Wheels 105 | . . 105 Hover 1756 | . 714 1042 Flight 48 | . . 48 Fastest Speed 50 | 50 56 52 Average Speed 71 | 104 66 73 Slowest Speed 300 | 120 200 300 Overloaded Moves . | . . . Propulsion Burnouts . | . . . Robots Hopped . | . . . Cave-ins Triggered . | . . . Exploration Rate (%) 56 | 3 99 67 Regions Visited 2 Branch Regions . Pre-discovered Areas . | . . . Known Exits Taken . | . . . Unknown Exits Taken 2 | 1 1 . Scrap Searched . | . . . Spaces Dug . | . . . Terrain Destroyed 102 | . . 102 Melee . | . . . Projectile 8 | . . 8 AOE 94 | . . 94 Terrain Rammed . | . . . Walls Destroyed . | . . . Machines Disabled . | . . . Actions | -11 -10 -9 --------- Run | Scr Mat Mat Total 2652 | 56 1011 1585 Wait 331 | . 110 221 Move 2069 | 39 794 1236 Hop . | . . . Pick Up 50 | 7 29 14 Fast Attach . | . . . Attach 44 | 8 17 19 Detach 11 | 2 7 2 Swap . | . . . Drop 27 | . 20 7 Fire 120 | . 34 86 Melee . | . . . Ram . | . . . Kick . | . . . Crush . | . . . Escape Stasis . | . . . Rewire . | . . . Trap . | . . . Miscellaneous . | . . . Route ------- -11/Scrapyard -10/Materials (discovered 5 exits: *Mat x3 / [*Min x2]) -9/Materials (discovered 3 exits: [*Mat] / [*Min x2]) History --------- Turn | Location | Event 5 | -11/Scrapyard | Discovered new exit (range 15) 58 | -11/Scrapyard | Entered Materials 307 | -10/Materials | Build established: Mutant 330 | -10/Materials | Discovered new exit (range 16) 381 | -10/Materials | Discovered new exit (range 9) 421 | -10/Materials | Repaired Hover Unit 449 | -10/Materials | Repaired Hover Unit 477 | -10/Materials | Repaired Hover Unit 584 | -10/Materials | Discovered new exit (range 4) 675 | -10/Materials | Discovered new exit (range 7) 704 | -10/Materials | Discovered new exit (range 3) 850 | -10/Materials | Entered another Materials area 850 | -9/Materials | Evolved 2 slots: Propulsion x1, Utility x1 907 | -9/Materials | Discovered new exit (range 5) 1343 | -9/Materials | Build established: Scavenger-Mutant 1496 | -9/Materials | Discovered new exit (range 12) 1634 | -9/Materials | Lost 6 parts (1p3n2w) 1791 | -9/Materials | Repaired Imp. Hover Unit 1866 | -9/Materials | Discovered new exit (range 15) 1899 | -9/Materials | Build established: Mutant 2115 | -9/Materials | Core integrity fell below 50% 2169 | -9/Materials | Lost 3 parts (1p1n1w) 2204 | -9/Materials | Core integrity fell below 20% 2233 | -9/Materials | Destroyed by Y-45 Defender with Heavy Assault Rifle Last Messages --------------- Triggered Alarm Trap. An alarm sounds. ALERT: Alarm triggered, dispatching investigation squad. Acquired 45 matter. Sensor Array destroyed. S-10 Pest destroyed. Acquired 11 matter. Acquired 9 matter. G-34 Mercenary knocked back. S-10 Pest destroyed. Acquired 11 matter. Imp. Light Cannon destroyed. Integration Channel disabled. G-34 Mercenary destroyed. G-34 Mercenary suffers critical hit. G-34 Mercenary destroyed. Acquired 23 matter. Destroyed Beam Rifle. Y-45 Defender destroyed. G-34 Mercenary destroyed. Map ----- +----------------------------------------------------+ | #?????????????????????????????????????????????? | | #?????????????????????????????????????????????? | | #?????????????????????????????????????????????? | | #?????????????????????????????????????????????? | | #################?????????????????????????????? | | ## ####??????????????????????????? | | #?? = T ######????????????????????????? | | #????? """ # [= #######+## ???????????? | | #????? """ "!% ???????????? | | #?????? """ # ! ???????????? | | #???? # ##### #### ???????????? | | ################## ###????????????????????????? | | *#! /![ #????????# #??????????????????????????? | | "! /![ #????????# #??????????????????????????? | | #! /![ #????????# #??????????????????????????? | | #########????????# #??????????????????????????? | | #???????????##### #??????????????????????????? | | ##?########### #??????????????????????????? | | " #??# ## #???????#??????????????????? | | ""#??# """ + T #?????? #??????????????????? | | R"#??# """ ## #######+######?????????????? | | ""#??# """ [## # %[ #?????????????? | | #??# ### ##![ """"" #?????????????? | | #??# """ #?# ##=Y%"""""""" #?????????????? | | +##### """ ! #?# ## *=" " ="" #?????????????? | | =# """ #?# ##!!=@[*[% #?????????????? | | # ### ########+######?????????????? | | ####/###### ##### ######???????????? | | ### ! #???????????? | | + = +??????? | | ### ! ###??????? | | #?# ##### ##### ## #????????? | | #?# #######+####??## ##? #????????? | | #?# ## #???# #??? #??????? | | ######?# ## "" #???# #???? /??????? | | ###????# ## """ #???# #????? #??????? | | ""#????# ## S" #???# #??????### ???????? | | "#????# ## #???# #?????????????????? | | "##### # """ #???# #?????????????????? | | # """ #???# #?????????????????? | | # """ #???# #?????????????????? | | ###########???# #?????????????????? | | ##### ?????????????? ?????????????????? | | ###?????# #???????????????? ?????????????????? | | ??????????????????????????? ??????????????????? | | ????????????????????????????????????????????????? | | ????????????????????????????????????????????????? | | ????????????????????????????????????????????????? | | ????????????????????????????????????????????????? | | ????????????????????????????????????????????????? | +----------------------------------------------------+ Best States ------------- Heat Dissipation 28 Energy Generation 12 Energy Capacity 265 Matter Stores 300 Matter Capacity 300 Sight Range 16 Robot Scan Range 10 Terrain Scan Range 14 Terrain Scan Density 10 Evasion (%) 54 Targeting Accuracy 5 Item Schematics ----------------- Imp. Light Cannon | -9/Materials | Scanalyzed Robot Schematics ------------------ None Fabricated ------------ Nothing Alien Tech Used ----------------- None Achievements -------------- None Challenges ------------ None Game ------ Seed HoverSlugEdition Manual? 0 Play Time 00:59:32 Cumulative 16.1 hours Start 2020.12.25 @ 22:58:09 End 2020.12.26 @ 00:12:35 Sessions 1 Manual Loads 0 Difficulty Rogue Special Mode None Game No. 18 Rogue 18 Adventurer 0 Explorer 0 Win Type - Total 0 Types 0/0/0/0/0/0/0/0/0 Lore% 10 Gallery% 14 Achievement% 13 Wizard Run 0 Options --------- ASCII 0 Keyboard 0 Movement Mouse Keybinds 0 Fullscreen 1 Font 18/SmallcapsGlow Map View 76x50 Tactical HUD 0 Map Filters NONE Filters NONE Steam 1 RUN: 50432593-accf-4062-9dcf-99164a21c2b8